bitfinex-derivatives/quotes_ETHF0:USTF0_20260119
["timestamp","ask_amount","ask_price","bid_price","bid_amount"]
[1768783101778,3.33491498,3216.9,3213.5,4.66990261]
[1768783101779,3.33239341,3216.7,3213.5,2.02354261]
[1768783101976,3.33239341,3216.7,3212.9,3.89798979]
[1768783101977,3.33239341,3216.2,3213.0,1.87257209]
[1768783102377,3.33239341,3216.2,3214.1,0.15561]
[1768783102775,3.33239341,3216.2,3213.2,0.15565]
[1768783102989,3.44395566,3216.0,3213.2,0.15565]
[1768783103292,3.44862514,3215.0,3213.2,0.15565]
[1768783103686,3.44862514,3215.0,3212.5,0.15932075]
[1768783104081,3.44862514,3215.0,3213.4,0.00466948]
[1768783104295,3.44862514,3215.0,3212.5,0.15932075]
[1768783104491,3.44395566,3214.9,3212.8,0.15568]
[1768783104884,3.44395566,3214.9,3212.9,0.15567]
[1768783105185,3.44395566,3214.9,3212.5,0.00363075]
[1768783105385,3.44395566,3214.9,3212.5,0.15932075]
[1768783105592,3.44395566,3214.9,3212.7,0.15568]
[1768783105778,3.44395566,3214.9,3213.7,0.15563]
[1768783105982,0.00466948,3215.0,3213.7,0.15563]
[1768783106690,3.44862514,3215.0,3212.6,1.85799243]
[1768783106882,3.44862514,3215.0,3212.8,3.71855737]
[1768783107284,0.00466948,3215.0,3212.9,1.90276129]
[1768783107592,0.00466948,3215.0,3213.7,0.15563]
[1768783107896,3.44395566,3216.2,3213.4,1.90276129]
[1768783108190,3.44395566,3216.2,3214.5,0.15559]
[1768783108497,3.44395566,3216.2,3214.0,1.89809181]
[1768783108498,3.44395566,3216.2,3214.6,0.15559]
[1768783108686,3.44395566,3216.8,3214.6,0.15559]
[1768783108887,3.44395566,3216.8,3214.7,0.15558]
[1768783109189,3.44395566,3216.8,3214.2,1.89809181]
[1768783109393,3.44395566,3216.8,3215.0,0.15557]
[1768783109582,3.44395566,3216.8,3215.4,0.00466948]
[1768783109782,3.44395566,3216.8,3215.0,0.0035018]
[1768783109783,0.00466948,3215.8,3215.0,0.0035018]
[1768783110795,0.00466948,3215.8,3215.0,0.1590718]
[1768783110988,3.44647723,3216.9,3215.1,0.00466948]
[1768783112283,3.44862514,3216.3,3215.1,0.00466948]
[1768783112595,0.00252157,3216.9,3215.5,0.15554]
[1768783113183,0.00252157,3216.9,3215.1,0.00466948]
[1768783114598,0.00252157,3216.9,3215.4,0.15555]
[1768783114899,0.00252157,3216.9,3215.9,0.15553]
[1768783115198,3.44395566,3218.7,3216.3,3.38170782]
[1768783115385,3.44395566,3218.7,3217.2,0.15546]
[1768783115692,3.44395566,3218.7,3216.4,0.1555]
[1768783116099,3.4477159,3218.7,3216.5,0.15549]
[1768783116399,3.4467159,3218.7,3217.2,0.004662]
[1768783116597,0.00376024,3218.7,3215.8,0.15553]
[1768783117093,0.15544,3217.7,3215.1,3.38170782]
[1768783117296,0.15544,3217.7,3215.4,0.15555]
[1768783117492,0.15544,3217.7,3214.5,2.8]
[1768783117493,0.1554,3218.5,3215.8,1.86056494]
[1768783117695,0.00376024,3218.7,3216.7,0.15548]
[1768783117897,0.00376024,3218.7,3216.8,0.004662]
[1768783118398,3.60098916,3218.6,3216.8,0.004662]
[1768783118595,3.60098916,3218.4,3216.8,0.004662]
[1768783118803,3.75639916,3218.4,3216.8,0.004662]
[1768783118994,0.15541,3218.3,3216.8,0.004662]
[1768783119299,3.60098916,3218.2,3216.8,0.004662]
[1768783119500,0.004662,3217.9,3216.8,0.004662]
[1768783121089,0.004662,3217.9,3217.1,0.15547]
[1768783121495,0.004662,3217.9,3216.8,0.004662]
[1768783121903,0.004662,3217.9,3216.8,0.160142]
[1768783122308,0.00376024,3218.7,3217.5,0.15545]
[1768783122501,0.00376024,3218.7,3217.5,0.15783316]
[1768783124004,0.00376024,3218.7,3217.5,0.00238316]
[1768783125094,1.44312482,3219.4,3217.5,3.38157976]
[1768783126205,1.44579554,3219.4,3217.5,0.00238316]
[1768783126508,5.0467847,3219.4,3217.5,0.00238316]
[1768783126805,0.00464456,3218.8,3217.5,3.38157976]
[1768783127010,3.60098916,3220.7,3218.1,3.5346166]
[1768783127498,3.60098916,3220.4,3218.1,3.5346166]
[1768783127694,3.60098916,3220.4,3218.1,3.3791966]
[1768783127898,3.60369117,3220.4,3218.1,3.63114073]
[1768783128104,0.00270201,3220.4,3218.7,3.3791966]
[1768783128304,0.00270201,3220.4,3219.2,0.15537]
[1768783129605,3.60098916,3222.0,3219.3,3.3791966]
[1768783129807,1.20795822,3221.4,3219.5,3.3791966]
[1768783130001,4.80894738,3221.4,3219.4,0.15536]
[1768783130202,3.60719816,3221.4,3219.4,0.15536]
[1768783130603,0.00896328,3221.4,3219.8,0.15534]
[1768783130801,0.00896328,3221.4,3219.8,0.15834579]
[1768783131102,4.81170166,3221.4,3219.8,0.00300579]
[1768783131302,0.00896328,3221.4,3219.8,0.15834579]
[1768783131811,1.20174922,3220.9,3219.8,0.00300579]
[1768783132004,1.20174922,3221.2,3219.8,0.00300579]
[1768783132706,3.60995244,3221.4,3219.8,0.00300579]
[1768783132908,0.00896328,3221.4,3219.8,3.3322143]
[1768783133209,1.20174922,3221.1,3219.8,0.00300579]
[1768783133401,0.00896328,3221.4,3220.0,0.15533]
[1768783133801,3.28e-06,3221.4,3219.9,3.32920851]
[1768783134000,3.54104355,3222.5,3219.9,3.32920851]
[1768783134213,3.54104355,3223.2,3221.2,0.15527]
[1768783134608,1.20174922,3222.9,3221.9,0.004662]
[1768783135005,1.20174922,3222.4,3221.9,0.004662]
[1768783135210,1.20174922,3222.5,3221.9,0.004662]
[1768783135406,1.20174922,3222.6,3221.9,0.004662]
[1768783135606,0.00225808,3222.9,3221.9,0.004662]
[1768783136013,1.2040073,3222.9,3221.9,0.004662]
[1768783136200,0.00225808,3222.9,3221.9,0.159892]
[1768783137216,0.00225808,3222.9,3221.9,0.004662]
[1768783137508,1.20174922,3222.8,3221.9,0.004662]
[1768783137912,0.00225808,3222.9,3221.9,0.004662]
[1768783138408,3.54330163,3222.9,3220.9,0.15528]
[1768783138612,3.54330163,3222.9,3221.0,0.15528]
[1768783138808,3.54104355,3222.7,3220.3,3.32920851]
[1768783139114,3.54104355,3222.1,3220.2,0.15532]
[1768783139307,3.54104355,3221.7,3219.8,0.00300579]
[1768783139509,3.54104355,3221.1,3218.6,0.1554]
[1768783139718,1.86056494,3222.2,3218.6,0.1554]
[1768783139719,3.54104355,3220.9,3218.6,0.1554]
[1768783140010,3.54104355,3220.7,3218.8,0.15539]
[1768783140416,3.54104355,3219.8,3218.0,0.15543]
[1768783140616,0.00252753,3219.8,3218.8,0.00226956]
[1768783140806,0.00252753,3219.8,3219.4,0.0046547]
[1768783141007,1.20174922,3219.5,3218.8,0.00226956]
[1768783141319,0.00252753,3219.8,3218.8,0.00226956]
[1768783141502,1.20174922,3219.6,3218.8,0.00226956]
[1768783141907,1.20174922,3219.5,3218.8,0.00226956]
[1768783142205,1.20174922,3219.4,3218.8,0.0046547]
[1768783142408,3.54104355,3221.0,3218.8,0.0046547]
[1768783142814,3.54104355,3220.6,3218.8,0.0046547]
[1768783143009,3.54104355,3220.6,3218.8,0.1600347]
[1768783143215,3.54104355,3221.3,3219.6,0.15535]
[1768783143516,3.54345499,3221.3,3219.6,0.00287752]
[1768783143718,3.54104355,3220.5,3219.0,0.15538]
[1768783143921,4.74279277,3219.9,3218.2,0.15541]
[1768783144106,3.54104355,3219.9,3218.4,0.15541]
[1768783144311,3.54104355,3219.9,3217.7,3.32920851]
[1768783144312,3.54104355,3220.5,3217.8,3.32920851]
[1768783144521,3.54104355,3221.1,3218.0,3.32920851]
[1768783144716,3.54104355,3221.1,3219.0,0.15538]
[1768783145024,3.54104355,3221.1,3219.1,0.15537]
[1768783145214,3.54104355,3221.1,3219.7,0.0046547]
[1768783145611,1.20174922,3220.7,3219.7,0.0046547]
[1768783145814,3.54104355,3221.1,3219.7,0.0046547]
[1768783146019,3.54104355,3221.1,3218.7,0.15539]
[1768783146020,1.20174922,3220.3,3218.7,0.15539]
[1768783146218,0.0046547,3220.5,3218.7,0.15539]
[1768783146527,0.0046547,3220.5,3219.0,0.15537]
[1768783146910,1.20174922,3220.4,3219.0,0.15537]
[1768783147113,3.54569825,3220.5,3219.0,0.15537]
[1768783147511,1.20174922,3220.0,3219.0,0.15537]
[1768783147723,3.54569825,3220.5,3218.2,0.15541]
[1768783147921,1.20174922,3220.1,3218.1,3.32920851]
[1768783148122,0.0046547,3220.5,3218.9,0.15538]
[1768783148317,0.0046547,3220.5,3218.8,0.0046547]
[1768783148521,0.0046547,3220.5,3219.2,0.15536]
[1768783148719,0.0046547,3220.5,3218.8,0.0046547]
[1768783148919,3.54345499,3221.3,3218.8,0.0046547]
[1768783148920,0.00241144,3221.3,3220.1,0.15532]
[1768783149422,1.20174922,3221.0,3220.1,0.15532]
[1768783149627,0.00241144,3221.3,3220.1,0.15532]
[1768783149821,3.54345499,3221.3,3219.2,3.32920851]
[1768783150025,3.54345499,3221.3,3219.5,0.15535]
[1768783150224,4.74520421,3221.3,3219.5,0.15535]
[1768783150529,1.20174922,3220.8,3219.5,0.15535]
[1768783150730,1.20174922,3220.6,3219.5,0.15535]
[1768783151026,1.20174922,3220.6,3218.8,0.0046547]
[1768783151027,0.0046547,3220.5,3219.7,0.15534]
[1768783151231,3.54104355,3221.2,3219.7,0.15534]
[1768783151524,3.54104355,3221.2,3219.0,3.32920851]
[1768783151525,3.54104355,3221.2,3219.9,0.15533]
[1768783151732,4.74279277,3221.2,3219.2,0.15537]
[1768783152031,4.74279277,3221.2,3219.3,0.15536]
[1768783152423,0.00241144,3221.3,3219.3,0.15536]
[1768783152424,3.54104355,3220.9,3219.3,0.15536]
[1768783152621,0.0046547,3220.6,3219.3,0.15536]
[1768783152927,1.20174922,3220.3,3219.3,0.15536]
[1768783153122,1.20174922,3220.2,3219.3,0.15536]
[1768783153317,3.54104355,3220.5,3218.8,0.0046547]
[1768783153526,0.15531,3220.4,3218.0,0.00321819]
[1768783153728,1.19709452,3220.0,3218.1,0.15542]
[1768783153919,1.7686547,3220.6,3218.0,0.00321819]
[1768783154120,1.19709452,3219.4,3218.0,0.00321819]
[1768783154326,0.15535,3219.7,3218.0,0.00321819]
[1768783154528,0.15535,3219.7,3216.5,3.32920851]
[1768783154728,0.15535,3219.7,3218.5,0.0046547]
[1768783155024,1.19709452,3219.4,3216.7,3.32920851]
[1768783155215,2.95135,3219.7,3216.7,3.32920851]
[1768783155216,4.65059876,3219.7,3216.7,3.32920851]
[1768783155417,1.85459876,3219.2,3216.7,0.00240093]
[1768783155622,1.19709452,3217.1,3216.0,0.2]
[1768783155822,3.54104355,3218.3,3216.0,0.2]
[1768783156031,0.00466338,3216.9,3216.5,0.15551]
[1768783156235,3.54104355,3218.3,3216.5,0.15551]
[1768783156530,3.54104355,3218.9,3216.3,5.18380727]
[1768783156830,0.00377021,3218.9,3217.3,0.15547]
[1768783157234,1.19709452,3218.7,3217.3,0.15547]
[1768783157418,1.19709452,3218.5,3217.8,0.00466338]
[1768783157617,3.54104355,3221.0,3217.5,3.32920851]
[1768783157924,3.54104355,3220.9,3218.0,5.18380727]
[1768783158126,3.54104355,3221.6,3219.1,1.85459876]
[1768783158320,3.54104355,3221.6,3219.5,0.15537]
[1768783158531,3.54104355,3221.6,3219.9,0.15535]
[1768783158724,0.0031995,3221.6,3219.9,0.15899644]
[1768783158919,1.1956929,3221.3,3220.4,0.00466338]
[1768783159231,1.1956929,3221.2,3220.4,0.00466338]
[1768783159528,1.1956929,3221.1,3220.4,0.00466338]
[1768783159832,1.1956929,3221.3,3220.4,0.00466338]
[1768783160333,0.0031995,3221.6,3220.4,0.00466338]
[1768783160628,1.1956929,3221.2,3220.4,0.00466338]
[1768783160827,0.0031995,3221.6,3220.4,3.33387189]
[1768783161028,3.54104355,3223.4,3221.1,0.15529]
[1768783161336,3.54104355,3223.4,3221.5,0.15527]
[1768783161724,0.0031995,3223.3,3221.6,0.15527]
[1768783161925,0.00374252,3223.3,3221.6,0.15527]
[1768783162425,0.00374252,3223.3,3222.1,0.00465607]
[1768783162625,0.0031995,3223.1,3222.1,0.00465607]
[1768783162825,3.30439738,3223.3,3222.1,0.00465607]
[1768783163025,3.30439738,3223.3,3220.9,3.32920851]
[1768783163233,3.30385436,3223.2,3220.9,3.32920851]
[1768783163439,3.30065486,3223.2,3220.8,0.1553]
[1768783163620,3.30065486,3222.6,3220.8,0.1553]
[1768783164028,0.0031995,3222.5,3220.8,0.1553]
[1768783164228,0.0031995,3222.4,3220.8,0.1553]
[1768783164427,3.30065486,3222.6,3220.8,0.1553]
[1768783164627,0.00465607,3221.9,3220.8,0.1553]
[1768783164939,0.00465607,3221.9,3220.9,0.1553]
[1768783165132,0.00465607,3221.9,3220.2,3.31682878]
[1768783165437,0.00465607,3221.9,3221.0,0.15529]
[1768783165626,3.30439738,3223.3,3220.8,3.31682878]
[1768783165826,3.30439738,3223.3,3221.8,0.15526]
[1768783165827,0.00374252,3223.3,3221.8,0.15526]
[1768783166539,0.0031995,3223.0,3221.8,0.15526]
[1768783166932,0.0031995,3222.7,3221.8,0.15526]
[1768783167132,0.0031995,3223.4,3221.8,0.15526]
[1768783167335,3.29834638,3223.9,3221.8,0.15526]
[1768783167639,0.0031995,3223.0,3221.8,0.15526]
[1768783167833,0.15517,3223.7,3220.6,3.31682878]
[1768783168132,0.1580195,3223.7,3221.3,0.15528]
[1768783168340,0.0031995,3223.2,3221.3,0.15528]
[1768783168536,0.1580195,3223.7,3221.3,0.15528]
[1768783168734,2.46929446,3223.6,3220.4,0.15532]
[1768783169142,0.00465607,3222.3,3220.4,0.15532]
[1768783169539,0.0031995,3222.1,3220.4,0.15532]
[1768783169935,0.00465607,3222.3,3220.4,0.15532]
[1768783169936,0.0031995,3222.0,3220.4,0.15532]
[1768783170335,3.30531093,3222.3,3220.4,0.15532]
[1768783170543,3.30531093,3222.3,3219.9,3.32047522]
[1768783170544,3.30531093,3222.3,3219.9,0.00364644]
[1768783170735,3.30065486,3221.5,3219.9,0.00364644]
[1768783170934,3.30385436,3221.5,3219.9,0.00364644]
[1768783171242,0.0031995,3220.9,3219.9,0.00364644]
[1768783171444,0.00711495,3220.9,3219.9,0.00364644]
[1768783171647,0.00391545,3220.9,3218.9,0.1554]
[1768783171937,0.00391545,3220.9,3218.7,3.31682878]
[1768783172244,0.00465607,3220.2,3219.0,3.31682878]
[1768783172539,0.00465607,3220.2,3219.0,3.31912256]
[1768783172739,0.00465607,3220.2,3219.6,0.15580694]
[1768783172941,0.00465607,3220.2,3219.3,0.16046301]
[1768783173141,0.00465607,3220.2,3219.3,0.00465607]
[1768783173839,0.00465607,3220.2,3218.8,0.1554]
[1768783174051,3.30531093,3220.2,3218.1,0.15544]
[1768783174549,3.30531093,3220.2,3218.2,0.15543]
[1768783174845,3.30531093,3220.2,3218.2,0.15822208]
[1768783175041,0.00465607,3220.2,3218.2,3.31962086]
[1768783175238,3.29928893,3220.8,3218.9,0.00465607]
[1768783175549,3.29928893,3220.8,3219.0,0.15539]
[1768783176446,0.00465607,3220.2,3219.0,0.15539]
[1768783178438,0.00465607,3220.2,3219.1,0.15810072]
[1768783178650,3.42406596,3220.1,3218.2,0.00279208]
[1768783179143,0.00465607,3220.2,3218.4,3.54167983]
[1768783179345,0.00465607,3220.2,3218.8,0.16006607]
[1768783179550,0.00465607,3220.2,3219.1,0.15539]
[1768783180243,0.00465607,3220.2,3219.1,0.31545607]
[1768783180457,0.00465607,3220.2,3219.1,0.15539]
[1768783182148,3.42872203,3220.2,3218.3,0.15542]
[1768783182452,3.42406596,3220.0,3218.2,0.00279208]
[1768783182754,3.42406596,3218.9,3217.1,0.15548]
[1768783183340,0.00465607,3218.3,3216.6,0.1555]
[1768783183638,0.00749524,3218.3,3216.6,0.1594097]
[1768783184443,0.00749524,3218.3,3216.6,0.0039097]
[1768783184644,0.00749524,3218.3,3216.9,0.15549]
[1768783186953,3.42406596,3219.5,3217.0,3.54167983]
[1768783187159,3.42406596,3220.3,3218.0,0.15544]
[1768783187356,3.42406596,3220.3,3217.5,3.54167983]
[1768783187655,3.57935596,3221.1,3218.7,0.1554]
[1768783187958,3.58274966,3221.1,3218.7,0.1554]
[1768783188148,0.00465607,3220.2,3218.7,0.1554]
[1768783188352,0.00465607,3220.2,3219.6,0.00465607]
[1768783188657,0.00465607,3220.2,3218.7,0.1554]
[1768783188853,0.00465607,3220.2,3219.1,0.16006607]
[1768783189251,0.00465607,3220.2,3219.3,0.16006607]
[1768783189447,0.00465607,3220.2,3219.3,0.00312847]
[1768783191346,3.42272203,3220.9,3219.3,0.00312847]
[1768783192654,0.00465607,3220.4,3219.3,0.00312847]
[1768783193559,3.3588694,3220.4,3217.4,3.73297241]
[1768783194258,3.3588694,3220.4,3217.6,3.57750241]
[1768783194458,3.3588694,3220.4,3217.6,3.58056827]
[1768783195057,3.5141994,3220.4,3217.6,3.58056827]
[1768783195261,3.5141994,3220.4,3217.6,3.73602827]
[1768783196257,3.5141994,3220.4,3218.7,0.00465607]
[1768783196858,3.35421333,3220.3,3218.7,0.00465607]
[1768783200688,3.35421333,3220.3,3217.6,3.58056827]
[1768783200689,3.35421333,3220.2,3217.6,3.58056827]
[1768783200972,3.35421333,3219.6,3217.6,0.00306586]
[1768783201275,3.50959333,3219.4,3217.6,0.00306586]
[1768783201575,3.35421333,3219.4,3217.6,0.00306586]
[1768783201761,3.35421333,3218.7,3216.5,0.15551]
[1768783202073,3.35421333,3219.2,3216.4,3.57750241]
[1768783202368,1.78,3219.0,3216.9,0.15549]
[1768783202762,3.35421333,3218.9,3216.9,0.15771221]
[1768783202963,3.50961333,3218.9,3216.9,0.15771221]
[1768783203164,0.00465607,3218.2,3216.9,0.15771221]
[1768783203564,0.00465607,3218.2,3217.1,0.16006607]
[1768783203766,0.00465607,3218.2,3216.9,0.00222221]
[1768783204277,3.3588694,3218.2,3216.9,0.00222221]
[1768783204775,3.3588694,3218.2,3215.4,3.57750241]
[1768783204776,3.35421333,3217.6,3215.6,0.15556]
[1768783204977,3.35421333,3217.6,3215.4,3.57750241]
[1768783204978,3.50968333,3217.5,3215.0,3.77750241]
[1768783205177,3.35421333,3217.5,3215.0,3.77750241]
[1768783205379,3.35421333,3217.5,3215.5,0.15556]
[1768783205584,0.00466374,3216.6,3215.5,0.1592911]
[1768783205873,0.0085855,3216.6,3215.5,0.1592911]
[1768783206181,1.85773471,3216.5,3215.0,0.2]
[1768783206577,3.35421333,3216.4,3215.0,0.2]
[1768783206780,3.35421333,3215.9,3213.9,0.15564]
[1768783207176,3.35421333,3215.9,3213.9,0.15928488]
[1768783207378,3.35421333,3215.9,3214.0,0.15563]
[1768783207579,1.782,3216.0,3214.0,3.89319848]
[1768783207771,3.35421333,3215.9,3214.0,0.15563]
[1768783208380,0.1555,3216.8,3214.1,3.57750241]
[1768783208572,1.85773471,3216.3,3214.3,0.15562]
[1768783208782,5.21194804,3215.8,3213.9,0.00364488]
[1768783208982,3.35421333,3215.7,3213.9,0.00364488]
[1768783209891,5.21194804,3215.3,3213.9,0.00364488]
[1768783210093,3.35421333,3215.2,3212.9,3.57750241]
[1768783210394,0.00466374,3214.4,3212.9,3.57750241]
[1768783210589,0.00466374,3214.4,3213.0,0.16006607]
[1768783210888,1.782,3215.5,3213.7,0.16006607]
[1768783211095,1.85773471,3215.7,3213.7,0.0033132]
[1768783211790,3.35421333,3215.7,3213.9,0.15564]
[1768783211987,3.35421333,3215.7,3213.7,0.0033132]
[1768783211988,3.35421333,3216.4,3214.5,0.15561]
[1768783212191,2.80292176,3216.6,3214.9,3.57750241]
[1768783212388,2.80292176,3216.6,3215.1,0.00466374]
[1768783212588,2.80292176,3216.6,3215.1,0.16472981]
[1768783212789,2.80292176,3216.6,3215.2,0.16006607]
[1768783212989,3.35421333,3216.5,3215.1,0.00466374]
[1768783213492,0.00466374,3216.1,3215.1,0.00466374]
[1768783214494,0.00466374,3216.1,3214.2,3.57750241]
[1768783214794,0.00466374,3216.1,3214.3,0.16006607]
[1768783214985,0.00466374,3216.1,3214.1,0.16006607]
[1768783215291,0.00466374,3216.1,3214.4,0.15561]
[1768783215683,3.35887707,3216.1,3213.7,3.58081561]
[1768783215992,3.35887707,3216.1,3213.9,0.16006607]
[1768783216179,3.35887707,3216.1,3214.0,0.16006607]
[1768783216579,3.35887707,3216.1,3213.8,3.57750241]
[1768783216790,0.00466374,3216.1,3214.4,0.15561]
[1768783216994,0.00466374,3216.1,3214.5,0.16006607]
[1768783217195,0.00466374,3216.1,3214.6,0.16006607]
[1768783217691,0.00466374,3216.1,3215.0,0.00466374]
[1768783217993,0.00466374,3216.1,3215.1,0.15558]
[1768783218394,0.00466374,3216.1,3215.9,0.16006607]
[1768783218588,0.00392176,3216.6,3215.2,0.15557]
[1768783218897,3.35421333,3217.9,3215.8,0.15555]
[1768783219091,3.35421333,3218.5,3216.3,0.15552]
[1768783219391,3.35421333,3218.4,3215.9,3.57750241]
[1768783219899,0.00466374,3217.5,3216.8,0.00466374]
[1768783220396,0.00466374,3217.5,3216.9,0.16006607]
[1768783221595,0.00278179,3218.4,3217.4,0.16006607]
[1768783221782,0.00278179,3218.4,3216.8,0.00466374]
[1768783221985,0.00278179,3218.4,3217.0,0.16006607]
[1768783222395,0.00278179,3218.4,3217.1,0.16006607]
[1768783222596,0.00278179,3218.4,3217.0,0.16006607]
[1768783222802,0.00466374,3218.1,3217.0,0.16006607]
[1768783223002,0.00466374,3218.1,3217.1,0.16006607]
[1768783223497,0.00466374,3218.1,3217.3,0.16006607]
[1768783223699,0.00466374,3218.1,3217.1,0.16006607]
[1768783224094,0.00466374,3218.1,3216.8,0.00466374]
[1768783224095,0.00278179,3218.4,3217.0,3.52093795]
[1768783224298,0.00278179,3218.4,3217.6,0.16006607]
[1768783224486,0.00278179,3218.4,3216.8,0.00466374]
[1768783224487,0.00278179,3218.4,3217.4,0.16006607]
[1768783224693,0.00278179,3218.4,3217.1,0.16006607]
[1768783224888,0.00278179,3218.4,3216.8,0.00466374]
[1768783225093,0.00278179,3218.4,3217.2,0.16006607]
[1768783225600,0.00278179,3218.4,3217.4,0.16006607]
[1768783225798,0.00278179,3218.4,3217.1,0.16006607]
[1768783226099,0.00278179,3218.4,3216.9,0.16006607]
[1768783226288,0.00466374,3218.1,3216.8,0.00466374]
[1768783226602,0.00466374,3218.1,3216.9,0.16006607]
[1768783226800,0.00466374,3218.1,3217.0,0.16006607]
[1768783227095,0.00466374,3218.1,3216.8,0.00466374]
[1768783227803,0.00466374,3218.1,3217.0,0.16006607]
[1768783228203,0.00466374,3218.1,3217.1,0.16006607]
[1768783228404,0.00466374,3218.1,3217.0,0.16006607]
[1768783228603,0.00466374,3218.1,3217.1,0.16006607]
[1768783228800,0.00466374,3218.1,3217.0,0.16006607]
[1768783229195,0.00466374,3218.1,3217.0,0.15549]
[1768783229399,0.00466374,3218.1,3217.6,0.16006607]
[1768783229594,0.00278179,3218.4,3217.5,0.16006607]
[1768783229800,0.00278179,3218.4,3217.2,3.36544795]
[1768783230005,3.3655296,3219.7,3218.0,0.16006607]
[1768783230211,0.94834584,3220.7,3218.4,0.15542]
[1768783230499,0.94834584,3220.7,3218.4,3.68093402]
[1768783230500,0.15532,3220.7,3218.4,3.68093402]
[1768783230703,3.5208496,3220.7,3218.4,3.68093402]
[1768783230906,3.52452296,3220.7,3219.2,0.00466374]
[1768783231206,0.00466374,3219.9,3219.2,0.00466374]
[1768783231796,0.00466374,3219.9,3219.2,0.16472981]
[1768783231996,3.37019334,3219.9,3218.4,0.00231345]
[1768783232198,5.1485296,3219.8,3218.4,0.00231345]
[1768783233107,5.1485296,3219.8,3218.8,0.00466374]
[1768783233295,3.3655296,3219.7,3218.4,0.00231345]
[1768783234008,0.16001374,3219.9,3218.4,0.00231345]
[1768783234400,0.00466374,3219.9,3218.8,0.00466374]
[1768783235202,3.52554334,3219.9,3218.4,0.00231345]
[1768783236805,3.3655296,3219.7,3218.4,0.00231345]
[1768783237003,0.00466374,3219.9,3218.4,0.00231345]
[1768783237306,0.00466374,3219.9,3218.7,0.00466374]
[1768783238401,0.00466374,3219.9,3218.9,0.1554]
[1768783238708,0.00367336,3220.7,3219.0,3.51235432]
[1768783239304,3.37684135,3220.7,3218.7,0.00466374]
[1768783239509,3.53215135,3220.7,3218.7,0.00466374]
[1768783239704,0.00466374,3220.0,3218.7,0.00466374]
[1768783239911,3.52853799,3219.6,3217.2,3.35696432]
[1768783240610,3.37316799,3219.5,3217.2,3.51244432]
[1768783241003,3.37316799,3219.5,3217.2,3.51498232]
[1768783241597,3.52853799,3219.4,3217.2,3.51498232]
[1768783242314,3.52853799,3219.4,3218.0,0.00466374]
[1768783242511,0.15538,3219.3,3218.0,0.00466374]
[1768783242808,0.00466374,3220.0,3218.2,3.51239432]
[1768783243207,0.00466374,3220.0,3218.7,0.15541]
[1768783243411,0.00466374,3220.0,3218.8,0.1554]
[1768783243715,0.00466374,3220.0,3218.7,3.35696432]
[1768783244603,0.00367336,3220.7,3219.2,0.15538]
[1768783244919,0.00367336,3220.7,3219.3,0.15538]
[1768783245611,0.00367336,3220.7,3219.7,0.00466374]
[1768783245802,0.00466374,3220.3,3219.7,0.00768704]
[1768783248911,0.00466374,3220.3,3218.7,3.35696432]
[1768783249111,0.00466374,3220.3,3218.2,0.15543]
[1768783249318,0.00466374,3220.3,3218.2,3.51239432]
[1768783250013,0.00466374,3220.3,3218.2,3.51620423]
[1768783250218,3.37783173,3220.3,3218.9,0.00466374]
[1768783253820,0.00466374,3220.3,3219.4,0.15537]
[1768783254023,0.00466374,3220.3,3218.9,3.31243993]
[1768783254421,0.00466374,3220.3,3218.9,3.46783993]
[1768783255121,0.00466374,3220.3,3219.1,3.46315619]
[1768783255310,0.00466374,3220.3,3219.1,3.30777619]
[1768783255720,0.00367336,3220.7,3219.1,3.30777619]
[1768783256019,0.15524,3222.2,3219.9,3.46312619]
[1768783256322,3.46014842,3222.4,3220.0,3.46311619]
[1768783256915,3.46305549,3222.4,3220.0,3.46311619]
[1768783257118,0.00466374,3221.5,3220.0,3.46311619]
[1768783257321,0.00466374,3221.5,3220.9,0.00466374]
[1768783257511,0.00466374,3221.5,3220.9,0.00735991]
[1768783261912,9.46481216,3221.5,3219.5,0.15536]
[1768783262111,3.46014842,3221.4,3218.8,3.30777619]
[1768783262320,0.00466374,3221.5,3219.4,3.30777619]
[1768783262521,0.00466374,3221.5,3219.9,3.46312619]
[1768783262816,0.00466374,3221.5,3219.9,3.30777619]
[1768783263017,0.00466374,3221.5,3220.5,0.15532]
[1768783263215,0.00290707,3222.4,3220.8,0.1553]
[1768783263623,0.00290707,3222.4,3220.7,3.31243993]
[1768783264015,3.46305549,3222.4,3220.7,0.00466374]
[1768783264322,0.00465607,3221.9,3220.7,0.00466374]
[1768783265221,3.46480449,3221.9,3219.9,0.00250774]
[1768783265524,3.46014842,3221.7,3219.9,0.00250774]
[1768783265723,3.61540842,3221.7,3219.9,0.00250774]
[1768783265919,3.61541842,3221.5,3219.9,0.00250774]
[1768783266425,3.46014842,3221.3,3219.9,0.00250774]
[1768783267524,3.46014842,3221.3,3218.9,0.1554]
[1768783267713,3.46014842,3221.0,3218.2,3.30777619]
[1768783267914,3.61544842,3221.0,3218.4,3.30777619]
[1768783268325,0.00465607,3220.0,3218.6,3.30777619]
[1768783268628,3.46014842,3221.2,3219.1,0.00466374]
[1768783268826,3.46014842,3221.8,3219.2,3.30777619]
[1768783269013,3.46014842,3221.8,3219.3,3.46315619]
[1768783269422,3.46014842,3221.7,3219.3,3.46315619]
[1768783269628,3.46014842,3221.7,3218.4,0.00273913]
[1768783269629,0.00465607,3220.9,3219.6,3.46313619]
[1768783270125,0.00465607,3220.9,3220.0,0.00466374]
[1768783270522,0.00231899,3221.8,3219.9,3.31243226]
[1768783270722,0.00231899,3221.8,3220.2,0.00466374]
[1768783271125,0.00231899,3221.8,3220.4,0.00466374]
[1768783271422,0.00231899,3221.8,3220.2,0.00466374]
[1768783271627,0.00231899,3221.8,3220.0,3.46311619]
[1768783271928,0.00231899,3221.8,3220.4,0.00466374]
[1768783272434,0.00231899,3221.8,3220.6,0.00466374]
[1768783272822,5.52990246,3223.0,3219.9,0.00465607]
[1768783272823,0.15518,3223.4,3220.8,3.46307619]
[1768783273127,3.46014842,3223.0,3220.8,3.46307619]
[1768783273328,3.46014842,3223.0,3221.8,0.00465607]
[1768783273924,3.46342344,3223.0,3220.8,3.30777619]
[1768783274124,3.46342344,3223.0,3220.1,0.15534]
[1768783274125,3.46342344,3223.0,3220.2,3.30777619]
[1768783274330,3.46014842,3222.4,3220.2,3.30777619]
[1768783275028,0.00465607,3221.6,3221.0,0.00465607]
[1768783275225,3.46342344,3223.0,3221.0,0.00465607]
[1768783275723,3.46342344,3223.0,3221.3,0.00466374]
[1768783276125,3.46342344,3223.0,3221.4,0.00466374]
[1768783276328,0.15521,3222.9,3221.0,0.00465607]
[1768783276628,3.46014842,3222.8,3221.0,0.00465607]
[1768783276824,3.61535842,3222.8,3221.0,0.00465607]
[1768783277229,3.61536842,3222.7,3221.0,0.00465607]
[1768783279729,3.46014842,3222.7,3221.0,0.00465607]
[1768783279921,0.00465607,3222.2,3221.0,0.00465607]
[1768783280122,0.00465607,3222.2,3221.1,0.00466374]
[1768783280333,0.00465607,3222.2,3221.0,0.00465607]